Cogmind - Beta 14 @@@ ROGUE MODE // 2025.05.02 @ 18:53:19 Player: Quartz Result: Destroyed by S-10 Pest with Light Assault Rifle Performance ------------- Evolutions (0) 0 Regions Visited (2) 400 Robots Destroyed (22) 110 Value Destroyed (534) 534 Prototype IDs (3) 60 Alien Tech Used (0) 0 Bonus (0) 0 TOTAL SCORE: 1104 Bonus ------- None Cogmind --------- Core Integrity 0/250 Matter 164/300 Energy 274/280 System Corruption 2% Temperature Hot (273) Movement Rolling (135) Ox3 Location -10/Mines Parts ------- > --- POWER (1) -------- Heavy Ion Engine > --- PROPULSION (2) --- Wheel Compact Wheel > --- UTILITY (2) ------ Huge Storage Unit Seismic Detector > --- WEAPON (2) ------- Spread Laser Spread Laser > --- INVENTORY (25) --- Heavy Ion Engine Heavy Ion Engine Heavy Ion Engine Heavy Ion Engine Improved Heat Sink Utility Shielding Utility Shielding Weapon Shielding Light Armor Plating Beam Rifle Beam Rifle Spread Laser Spread Laser Beam Cannon Improved Assault Rifle Improved Assault Rifle Improved Assault Rifle Grenade Launcher Grenade Launcher Plasma Cutter Peak State ------------ > --- POWER ------------ Heavy Ion Engine > --- PROPULSION ------- Wheel Compact Wheel > --- UTILITY ---------- Huge Storage Unit Targeting Computer > --- WEAPON ----------- Beam Rifle Improved Assault Rifle > --- INVENTORY -------- Heavy Ion Engine Heavy Ion Engine Heavy Ion Engine Heavy Ion Engine Improved Heat Sink Small Storage Unit Terrain Scanner Utility Shielding Utility Shielding Weapon Shielding Beam Rifle Spread Laser Spread Laser Spread Laser Spread Laser Beam Cannon Improved Assault Rifle Improved Assault Rifle Improved Assault Rifle Plasma Cutter [Rating: 16] Favorites ----------- Power Heavy Ion Engine Engine Heavy Ion Engine Propulsion Light Treads Treads Light Treads Wheel Wheel Utility Huge Storage Unit Device Improved Heat Sink Storage Huge Storage Unit Processor Targeting Computer Weapon Beam Rifle Energy Gun Beam Rifle Ballistic Gun Improved Assault Rifle Build | -11 -10 -10 ------- Run | Yrd Mat Min Slots Evolved . | . . . Power . | . . . Propulsion . | . . . Utility . | . . . Weapon . | . . . Parts Attached 27 | . 27 . Power 5 | . 5 . Engine 5 | . 5 . Core . | . . . Reactor . | . . . Propulsion 8 | . 8 . Treads 2 | . 2 . Leg . | . . . Wheel 6 | . 6 . Hover . | . . . Flight . | . . . Utility 6 | . 6 . Device 3 | . 3 . Storage 2 | . 2 . Processor 1 | . 1 . Hackware . | . . . Protection . | . . . Artifact . | . . . Weapon 8 | . 8 . Energy Gun 7 | . 7 . Energy Cannon . | . . . Ballistic Gun 1 | . 1 . Ballistic Cannon . | . . . Launcher . | . . . Special Weapon . | . . . Impact Weapon . | . . . Slashing Weapon . | . . . Piercing Weapon . | . . . Special Melee Weapon . | . . . Unidentified Prototypes 2 | . 2 . Parts Lost 2 | . 2 . Power . | . . . Propulsion 2 | . 2 . Utility . | . . . Weapon . | . . . Highest Loss Streak 1 | . 1 . To Critical Strikes . | . . . Average Slot Usage (%) 89 | . 88 100 Engine 13 | . 13 14 Treads 11 | . 11 . Wheel 12 | . 11 28 Device 3 | . 3 14 Storage 13 | . 13 14 Processor 7 | . 7 . Energy Gun 25 | . 25 28 Peak Build Rating 16 | . 16 15 Average Rating 11 | . 11 15 On Entrance 5 | . . 15 Naked Turns 3 | . 3 . Heaviest Build 95 | . 95 95 Greatest Support 40 | 3 40 26 Greatest Overweight (x) 30 | . 30 3 Average Overweight (x) 3 | . 4 3 Largest Inventory Capacity 25 | 5 25 25 Average Capacity 22 | 5 22 25 Most Carried 25 | 5 25 20 Average Carried 9 | 3 9 20 Final Capacity 25 | 5 25 25 Final Carried 20 | 5 20 20 Class Distribution -------------------- 100% | Mutant Dominant Class ---------------- Mutant | -10/Materials Mutant | -10/Mines Resources | -11 -10 -10 ----------- Run | Yrd Mat Min Matter Collected 357 | . 357 . Remotely . | . . . Salvage Created 808 | . 756 52 Parts 46 | . 40 6 Haulers Intercepted 1 | . 1 . Recyclers Shooed . | . . . Parts Field Recycled . | . . . Retrieved Matter . | . . . Parts Self-Destructed . | . . . Prevented . | . . . Kills | -11 -10 -10 ------- Run | Yrd Mat Min Combat Hostiles Destroyed 13 | . 11 2 Guns 11 | . 9 2 Classes Destroyed 8 | . 6 2 Worker 3 | . 3 . Builder 2 | . 2 . Hauler 1 | . 1 . Recycler 1 | . 1 . Watcher 2 | . 2 . Swarmer 1 | . . 1 Grunt 11 | . 11 . Sentry 1 | . . 1 Best Kill Streak 4 | . 4 2 Combat Bots Only 4 | . 4 2 Max Kills in Single Turn 1 | . 1 1 Gunslinging . | . . . Exploded . | . . . Melee . | . . . Uniques/NPCs Destroyed . | . . . Combat | -11 -10 -10 -------- Run | Yrd Mat Min Hostile Shots Fired 83 | . 58 25 Missed 16 | . 8 8 Damage Taken 936 | . 759 177 Core 257 | . 222 35 Absorbed by Shields . | . . . Regen/Repaired (Parts) 54 | . 54 . Core Remaining (%) 100 | 100 . . Volleys Fired 67 | . 63 4 Largest 2 | . 2 2 Hottest 130 | . 112 130 Shots Fired 107 | . 99 8 Gun 107 | . 99 8 Cannon . | . . . Launcher . | . . . Special . | . . . Kinetic . | . . . Thermal 107 | . 99 8 Explosive . | . . . Electromagnetic . | . . . Robot Hit Streak 14 | . 11 14 Robot Miss Streak 7 | . 4 7 Penetration Max . | . . . Secondary Targets 3 | . 1 2 Max Gunslinging Chain 1 | . 1 1 Shots Hit Robots 70 | . 63 7 Core Hits 37 | . 27 10 Critical Kills . | . . . Critical Parts Destroyed . | . . . Critical Strikes 7 | . 7 . Burn 7 | . 7 . Melee Attacks . | . . . Impact . | . . . Slashing . | . . . Piercing . | . . . Sneak Attacks . | . . . Combat Hostiles . | . . . Follow-up Attacks . | . . . Damage Inflicted 1014 | . 915 99 Guns 1014 | . 915 99 Cannons . | . . . Explosions . | . . . Melee . | . . . Ramming . | . . . Kinetic . | . . . Thermal 1014 | . 915 99 Explosive . | . . . Electromagnetic . | . . . Impact . | . . . Slashing . | . . . Piercing . | . . . Highest Corruption 2 | . 2 2 Average Corruption 2 | . 2 2 Corruption Purged . | . . . Corruption Blocked . | . . . Effects 6 | . 6 . Message Errors 1 | . 1 . Matter Fused 1 | . 1 . Heat Flow Errors 1 | . 1 . Energy Discharges 1 | . 1 . Data Loss (minor) 2 | . 2 . Overload Shots . | . . . Overflow Damage . | . . . Projectiles . | . . . Explosions . | . . . Melee . | . . . Knockbacks . | . . . Impact . | . . . Kinetic . | . . . Secondary . | . . . Self-Inflicted Damage . | . . . Shots . | . . . Rammed . | . . . Targets Rammed . | . . . Kicked . | . . . Crushed . | . . . Highest Temperature 648 | . 648 273 Average Temperature 172 | . 173 147 Received Heat Transfer 429 | . 420 9 Effects 22 | . 22 . Shutdowns 2 | . 2 . Energy Bleed 2 | . 2 . Interference 6 | . 6 . Matter Decay 3 | . 3 . Short Circuit 2 | . 2 . Damage (minor) 5 | . 5 . Damage (core) 2 | . 2 . Siege Activations . | . . . Robots Corrupted . | . . . Combat Hostiles . | . . . Parts Fried . | . . . Impact Corruptions . | . . . Robots Melted 2 | . 2 . Combat Hostiles 2 | . 2 . Parts Melted 12 | . 12 . Heat Transferred 2969 | . 2849 120 Parts Sabotaged . | . . . Parts Stolen . | . . . Parts Stripped . | . . . Power Chain Reactions . | . . . Alert | -11 -10 -10 ------- Run | Yrd Mat Min Peak Influence 131 | . 131 71 Initial 6 | . . 6 Average 64 | . 65 30 Maximum Alert Level . | . . . Low Security (%) 100 | 100 100 100 Level 1 . | . . . Level 2 . | . . . Level 3 . | . . . Level 4 . | . . . Level 5 . | . . . High Security . | . . . Max Security . | . . . Squads Dispatched 2 | . 2 . Investigation 1 | . 1 . Extermination . | . . . Reinforcement 1 | . 1 . Assault . | . . . Garrison . | . . . Intercept . | . . . Searches Triggered . | . . . Construction Impeded . | . . . Haulers Reinforced . | . . . Active Scanning Responses . | . . . Cargo Convoy Interrupts . | . . . Stealth | -11 -10 -10 --------- Run | Yrd Mat Min Distress Signals 3 | . 3 . Communications Jammed . | . . . Distress Signals . | . . . Times Spotted 22 | . 17 5 Peak Tracking Total 5 | . 5 5 Tactical Retreats 1 | . 1 . Traps | -11 -10 -10 ------- Run | Yrd Mat Min Traps Triggered 5 | . 5 . Indirectly . | . . . Trap Hack Attempts . | . . . Triggered . | . . . Disarmed . | . . . Reprogrammed . | . . . Reused . | . . . Traps Extracted . | . . . Installed . | . . . Triggered . | . . . Machines | -11 -10 -10 ---------- Run | Yrd Mat Min Machines Disabled . | . . . Max in Single Turn . | . . . Machines Repaired . | . . . Machines Dismantled . | . . . Machines Sabotaged . | . . . Overloaded Fab Kills . | . . . Hacking | -11 -10 -10 --------- Run | Yrd Mat Min Machines Accessed 5 | . 5 . Terminals 3 | . 3 . Fabricators . | . . . Repair Stations 1 | . 1 . Recycling Units 1 | . 1 . Scanalyzers . | . . . Garrison Access . | . . . Total Hacks 18 | . 18 . Successful 6 | . 6 . Failed 12 | . 12 . Catastrophic 2 | . 2 . Database Lockouts . | . . . Manual . | . . . Terminals 12 | . 12 . Fabricators . | . . . Repair Stations 4 | . 4 . Recycling Units 2 | . 2 . Scanalyzers . | . . . Garrison Access . | . . . Terminal Hacks 2 | . 2 . Prototype ID Bank 1 | . 1 . Branch Access Points 1 | . 1 . Fabricator Hacks . | . . . Repair Station Hacks 2 | . 2 . Scan Component 1 | . 1 . Repair 1 | . 1 . Recycling Unit Hacks 2 | . 2 . Report Inventory 1 | . 1 . Retrieve Components 1 | . 1 . Scanalyzer . | . . . Garrison Access Hacks . | . . . Unauthorized Hacks . | . . . Terminals . | . . . Fabricators . | . . . Repair Stations . | . . . Recycling Units . | . . . Scanalyzers . | . . . Garrison Access . | . . . Data Cores Recovered . | . . . Used . | . . . Hacking Detections 4 | . 4 . Full Trace Events 3 | . 3 . Feedback Events . | . . . Feedback Blocked . | . . . Robot Schematics Acquired . | . . . Robots Built . | . . . Authchips . | . . . Time . | . . . Total Robot Build Rating . | . . . Part Schematics Acquired . | . . . Parts Built . | . . . Authchips . | . . . Time . | . . . Total Part Build Rating . | . . . Parts Repaired 1 | . 1 . Time 16 | . 16 . Parts Recycled . | . . . Recycled Matter . | . . . Retrieved Matter . | . . . Retrieved Components 9 | . 9 . Parts Scanalyzed . | . . . Part Schematics Acquired . | . . . Parts Damaged . | . . . Bothacking | -11 -10 -10 ------------ Run | Yrd Mat Min Used RIF Installer . | . . . Robots Hacked . | . . . Non-combat . | . . . Combat . | . . . Robot Hacks Applied . | . . . Relay Couplers Released . | . . . Fabnet Peak Effective % . | . . . Robots Rewired . | . . . Allies Hacked . | . . . Hacks Repelled . | . . . Allies | -11 -10 -10 -------- Run | Yrd Mat Min Total Allies . | . . . Largest Group . | . . . Highest-Rated Group . | . . . Highest-Rated Ally . | . . . Total Orders . | . . . Ally Attacks . | . . . Total Damage . | . . . Kills . | . . . Allies Corrupted . | . . . Allies Melted . | . . . Intel | -11 -10 -10 ------- Run | Yrd Mat Min Robot Analysis Total . | . . . Derelict Logs Recovered . | . . . Drone Launches . | . . . Drone Recoveries . | . . . Exploration | -11 -10 -10 ------------- Run | Yrd Mat Min Turns Passed 1482 | 22 1439 21 Spaces Moved 557 | 28 522 7 Core 42 | 28 14 . Treads 137 | . 137 . Legs . | . . . Wheels 378 | . 371 7 Hover . | . . . Flight . | . . . Fastest Speed 50 | 50 50 135 Average Speed 215 | 50 225 135 Slowest Speed 1550 | 50 1550 135 Overloaded Moves . | . . . Propulsion Burnouts . | . . . Robots Hopped . | . . . Cave-ins Triggered . | . . . Exploration Rate (%) 28 | 3 78 5 Regions Visited 2 Branch Regions 1 Pre-discovered Areas . | . . . Known Exits Taken 1 | . 1 . Unknown Exits Taken 1 | 1 . . Scrap Searched . | . . . Spaces Dug . | . . . Terrain Destroyed . | . . . Melee . | . . . Projectile . | . . . AOE . | . . . Terrain Rammed . | . . . Walls Destroyed . | . . . Machines Disabled . | . . . Actions | -11 -10 -10 --------- Run | Yrd Mat Min Total 731 | 35 685 11 Wait 26 | 3 23 . Move 555 | 27 521 7 Hop . | . . . Pick Up 45 | 5 40 . Fast Attach 3 | . 3 . Attach 18 | . 18 . Detach . | . . . Swap 6 | . 6 . Drop 11 | . 11 . Fire 67 | . 63 4 Melee . | . . . Ram . | . . . Kick . | . . . Crush . | . . . Escape Stasis . | . . . Rewire . | . . . Trap . | . . . Miscellaneous . | . . . Route ------- -11/Scrapyard -10/Materials (discovered 5 exits: [*Mat x3] / *Min / [*Sub]) -10/Mines History --------- Turn | Location | Event 11 | -11/Scrapyard | Discovered new exit (range 15) 23 | -11/Scrapyard | Entered Materials 136 | -10/Materials | Core integrity fell below 50% 312 | -10/Materials | Build established: Mutant 466 | -10/Materials | Identified exit to Mines 663 | -10/Materials | Discovered new exit (range 7) 699 | -10/Materials | Discovered new exit (range 15) 759 | -10/Materials | Repaired Beam Rifle 944 | -10/Materials | Discovered new exit (range 15) 996 | -10/Materials | Core integrity fell below 20% 1021 | -10/Materials | Discovered new exit (range 10) 1462 | -10/Materials | Entered Mines 1483 | -10/Mines | Destroyed by S-10 Pest with Light Assault Rifle Last Messages --------------- 01339_ Massive razor-sharp blades shoot up from within the floor. 01352_ System corrupted: Component data lost. 01353_ Acquired Wheel. 01369_ Acquired Com. Wheel. 01380_ System corrupted: Heat flow error (+203). 01385_ Acquired Spread Laser. 01396_ U-05 Engineer lays Concrete. 01434_ Dropped Terrain Scanner. 01436_ Dropped Sml. Storage Unit. 01439_ System corrupted: Matter fused (-5). 01442_ Connecting with Terminal... 01445_ Acquired Lgt. Armor Plating. LOCATION=MINES GOAL=ESCAPE 01475_ S-10 Pest destroyed. 01475_ Switching to secondary target: S-10 Pest. 01481_ Y-45 Defender destroyed. 01481_ Switching to secondary target: Y-45 Defender. Map ----- +----------------------------------------------------+ | ?????????????????????????????????????????????? | | ?????????????????????????????????????????????? | | ?????????????????????????????????????????????? | | ?????????????????????????????????????????????? | | ?????????????????????????????????????????????? | | ?????????????????????????????????????????????? | | ?????????????????????????????????????????????? | | ?????????????????????????????????????????????? | | ?????????????????????????????????????????????? | | ?????????????????????????????????????????????? | | ?????????????????????????????????????????????? | | ?????????????????????????????????????????????? | | ?????????????????????????????????????????????? | | ?????????????????????????????????????????????? | | ?????????????????????????????????????????????? | | ?????????????????????????????????????????????? | | ?????????????????????????????????????????????? | | ?????????????????????????????????????????????? | | ?????????????????????????????????????????????? | | ?????????????????????????????????????????????? | | ???????????????######???????#????????????????? | | ??????????????##"[!"##????? ?????????????????? | | ??????????????#""!!""#???? #?????????????????? | | ??????????????# ##### #?????????????????? | | ???????????????# ## =ss#?????????????????? | | ??????????????###++##@ [ #?????????????????? | | ??????????????# [%! ####?????????????????? | | ?????????????## Y #????????????????????? | | ?????????????# #????????????????????? | | ???????# ## #????????????????????? | | ???????# #?## ##????????????????????? | | ???????####### ???# #?????????????????????? | | ?????????????# ??? #?????????????????????? | | ?????????????####??# #?????????????????????? | | ??????????????????? #?????????????????????? | | ??????????????????? ##?????????????????????? | | ??????????????????#####??????????????????????? | | ?????????????????????????????????????????????? | | ?????????????????????????????????????????????? | | | | | | | | | | | | | | | | | | | | | | | +----------------------------------------------------+ Best States ------------- Heat Dissipation 39 Energy Generation 14 Energy Capacity 280 Matter Stores 289 Matter Capacity 300 Sight Range 16 Terrain Scan Density 10 Evasion (%) 50 Targeting Accuracy 5 Recoil Reduction 2 Item Schematics ----------------- None Robot Schematics ------------------ None Fabricated ------------ Nothing Alien Tech Used ----------------- None Achievements -------------- None Challenges ------------ None Game ------ Seed VortexLaserBay Manual? 0 Play Time 00:11:11 Cumulative 4.5 hours Start 2025.05.02 @ 18:42:25 End 2025.05.02 @ 18:53:19 Sessions 1 Manual Loads 0 Difficulty Rogue Special Mode None Game No. 12 Rogue 12 Adventurer 0 Explorer 0 Win Type - Total 0 Types 0/0/0/0/0/0/0/0/0 Lore% 4 Gallery% 8 Achievement% 10 Wizard Run 0 Options --------- Layout 1 ASCII 0 Keyboard 0 Movement Mouse Keybinds 0 Fullscreen 1 Font 24/Smallcaps Map View 50x35 Zoom Use 0% Tactical HUD 1 Map Filters NONE Filters NONE Steam 1 RUN: 1d88a191-8bd7-47fd-8862-b4ec41964121